Cogmind - Beta 9 @@@ ROGUE MODE // 2019.10.23 @ 13:21:31 Player: Alexbot Result: Escaped! Performance ------------- Evolutions (9) 4500 Regions Visited (27) 5400 Robots Destroyed (519) 2595 Value Destroyed (25922) 25922 Prototype IDs (47) 940 Alien Tech Used (0) 0 Bonus (20708) 20708 TOTAL SCORE: 60065 Bonus ------- Triggered High Security 1000 High Alert Combat Kills 9962 Follower Combat Kills 2291 Entered Garrisons 1400 Used RIF Installer 3500 Aligned with FarCom 300 Built Enhanced Grunts 300 Met R17 at Cetus 500 Win 3000 Friendly Fire -1545 Cogmind --------- Core Integrity 1350/1600 Matter 215/300 Energy 250/270 System Corruption 8% Temperature Cool (357) Location To Epsilon Eridani Parts ------- Power (2) Light Particle Reactor Light Quantum Reactor Propulsion (5) Combat Linear Gravjet Combat Linear Gravjet Combat Linear Gravjet Combat Linear Gravjet Combat Linear Gravjet Utility (15) Advanced Heat Sink Large Storage Unit Large Storage Unit Advanced Terrain Scan Processor Experimental Core Analyzer Quantum Capacitor Advanced Reaction Control System Advanced Phase Shifter Experimental Utility Shielding Heavy Reactive Plating Improved System Shield Advanced System Shield Advanced System Shield Weapon (3) Advanced Variable Charge Gun Heavy Neutron Cannon Advanced Remote Datajack Inventory (16) Experimental Gyrokinetic Inverter Energy Well (500) Energy Well (500) Matter Compressor (0) Advanced Terrain Scanner Core Analyzer Improved Overload Regulator Advanced ECM Suite Advanced Cloaking Device Experimental Utility Shielding Improved System Restoration Module Compact HERF Cannon Latent Energy Streamer Enhanced Nova Cannon Hypervelocity Mass Driver Peak State ------------ Power Light Particle Reactor Light Quantum Reactor Propulsion Combat Linear Gravjet Combat Linear Gravjet Combat Linear Gravjet Combat Linear Gravjet Combat Linear Gravjet Utility Advanced Heat Sink Large Storage Unit Large Storage Unit Energy Well Advanced Terrain Scan Processor Experimental Core Analyzer Quantum Capacitor Advanced Reaction Control System Advanced Phase Shifter Experimental Utility Shielding Improved System Shield Advanced System Shield Advanced System Shield Improved System Restoration Module Weapon Gamma Rifle Compact HERF Cannon Heavy Neutron Cannon Inventory Experimental Gyrokinetic Inverter Energy Well Matter Compressor Advanced Terrain Scanner Improved Overload Regulator Advanced ECM Suite Advanced Cloaking Device Experimental Utility Shielding Heavy Reactive Plating Advanced Variable Charge Gun Enhanced Quantum Rifle Latent Energy Streamer Hypervelocity Mass Driver Advanced Remote Datajack [Rating: 184] Favorites ----------- Power Light Antimatter Reactor Engine Ion Engine Power Core Light Nuclear Core Reactor Light Antimatter Reactor Propulsion Centrium Heavy Treads Treads Centrium Heavy Treads Leg Myomer Leg Wheel Centrium Wheel Hover Unit Combat Linear Gravjet Utility Large Storage Unit Device Improved Focal Shield Storage Large Storage Unit Processor Advanced Terrain Scan Processor Hackware Advanced System Shield Protection Powered Armor Weapon Improved Light Cannon Energy Gun Gamma Rifle Energy Cannon Long-range Phase Cannon Ballistic Gun Light Assault Rifle Ballistic Cannon Improved Light Cannon Launcher Heavy Rocket Launcher Special Weapon Improved Remote Datajack Slashing Weapon Power Sword Build | -11 -10 -10 -9 -9 -9 -8 -8 -8 -7 -7 -7 -7 -6 -6 -6 -6 -6 -6 -6 -6 -5 -4 -4 -3 -3 -2 -1 ------- Run | Scr Mat Min Mat Min Exi Min Mat Gar Fac Gar Fac Gar Fac Gar Fac Ext Cet Arc Hub Gar Fac Fac Gar Res Gar Res Acc Slots Evolved 18 | . . . 2 . . . 2 . 2 . . . 2 . . . . . . . 2 2 . 2 . 2 2 Power 1 | . . . . . . . . . . . . . . . . . . . . . . 1 . . . . . Propulsion 3 | . . . . . . . . . . . . . 2 . . . . . . . . . . 1 . . . Utility 13 | . . . 2 . . . 2 . 2 . . . . . . . . . . . 2 1 . 1 . 1 2 Weapon 1 | . . . . . . . . . . . . . . . . . . . . . . . . . . 1 . Parts Attached 523 | 6 3 . 13 . 4 7 26 12 7 19 3 7 8 21 8 10 10 . . 9 47 80 14 30 44 80 55 Power 41 | 1 . . 1 . . 1 3 3 1 1 1 . 1 2 . 1 . . . 1 . 4 2 3 4 7 4 Engine 6 | 1 . . 1 . . . 1 . . . 1 . . 2 . . . . . . . . . . . . . Core 14 | . . . . . . 1 2 3 1 1 . . 1 . . 1 . . . . . . 1 1 . 1 1 Reactor 21 | . . . . . . . . . . . . . . . . . . . . 1 . 4 1 2 4 6 3 Propulsion 78 | 2 . . 2 . . 2 7 2 2 . . . 3 6 3 . 2 . . . 3 2 . 4 7 23 8 Treads 41 | . . . 2 . . 2 5 2 2 . . . . 5 2 . 2 . . . 3 2 . 3 5 6 . Leg 8 | . . . . . . . . . . . . . . 1 . . . . . . . . . . . 6 1 Wheel 8 | 2 . . . . . . 2 . . . . . 1 . 1 . . . . . . . . 1 1 . . Hover 21 | . . . . . . . . . . . . . 2 . . . . . . . . . . . 1 11 7 Flight . | . . . . . . . . . . . . . . . . . . . . . . . . . . . . Utility 211 | 1 2 . 6 . 2 2 12 6 4 7 . 3 4 4 5 2 4 . . 2 24 43 4 7 18 22 27 Device 109 | . . . 1 . 1 . 2 2 2 1 . 1 2 1 1 1 1 . . 1 8 35 3 2 10 12 22 Storage 29 | 1 1 . 2 . . . 3 . 1 2 . . . 1 . . 1 . . . 3 2 . 1 4 7 . Processor 4 | . . . . . . . . . . . . . . . . . . . . . . 1 . . . 1 2 Hackware 18 | . . . . . . . 2 . 1 1 . . 1 . 1 . . . . . 3 2 1 4 . 1 1 Protection 51 | . 1 . 3 . 1 2 5 4 . 3 . 2 1 2 3 1 2 . . 1 10 3 . . 4 1 2 Artifact . | . . . . . . . . . . . . . . . . . . . . . . . . . . . . Weapon 193 | 2 1 . 4 . 2 2 4 1 . 11 2 4 . 9 . 7 4 . . 6 20 31 8 16 15 28 16 Energy Gun 19 | 2 . . . . . . . . . . . . . . . . 1 . . . 1 1 . 1 2 2 9 Energy Cannon 90 | . . . . . 1 . 1 1 . 3 2 2 . 4 . 4 2 . . 3 5 25 4 10 7 13 3 Ballistic Gun 2 | . 1 . . . . . . . . . . . . . . . . . . 1 . . . . . . . Ballistic Cannon 29 | . . . 4 . 1 2 3 . . 4 . . . 1 . . . . . . 5 . . . 1 6 2 Launcher 34 | . . . . . . . . . . 3 . 2 . 4 . 3 1 . . 2 4 5 3 . 3 4 . Special Weapon 16 | . . . . . . . . . . 1 . . . . . . . . . . 5 . 1 5 1 2 1 Impact Weapon . | . . . . . . . . . . . . . . . . . . . . . . . . . . . . Slashing Weapon 3 | . . . . . . . . . . . . . . . . . . . . . . . . . 1 1 1 Piercing Weapon . | . . . . . . . . . . . . . . . . . . . . . . . . . . . . Special Melee Weapon . | . . . . . . . . . . . . . . . . . . . . . . . . . . . . Unidentified Prototypes 14 | . . . . . 2 . . . . . 1 . 1 . . . 1 . . 1 1 2 . . 1 4 . Parts Lost 103 | . 1 . 5 . . 7 14 4 1 2 . . . 2 1 1 . . . 3 7 . 6 5 11 19 14 Power 18 | . . . 1 . . 1 3 1 . . . . . . . 1 . . . . . . 2 . 3 4 2 Propulsion 20 | . . . 1 . . 2 4 . . . . . . 1 . . . . . . . . . 2 1 5 4 Utility 36 | . . . 1 . . 2 6 3 1 1 . . . . 1 . . . . 1 5 . 2 2 3 5 3 Weapon 29 | . 1 . 2 . . 2 1 . . 1 . . . 1 . . . . . 2 2 . 2 1 4 5 5 Highest Loss Streak 14 | . 1 . 2 . . 3 6 2 1 2 . . . 1 1 1 . . . 1 2 . 4 1 3 9 14 Average Slot Usage (%) 90 | . 91 100 98 100 100 99 92 100 97 99 99 100 96 93 86 92 91 86 86 82 84 88 85 85 88 83 85 Engine 2 | . 14 14 10 11 11 5 3 . . . 4 7 1 4 6 4 . . . . . . . . . . . Core 2 | . . . . . . 5 4 9 7 7 2 . 4 1 . 1 6 6 6 2 . . 2 4 . 1 . Reactor 3 | . . . . . . . . . . . . . . . . . . . . 3 5 9 4 4 8 6 7 Treads 10 | . . . 9 22 22 21 15 7 15 15 15 15 8 16 13 13 17 13 13 13 9 9 10 9 9 2 . Wheel 2 | . 28 28 12 . . . 1 10 . . . . 5 5 5 6 . . . . . . . 2 4 . . Hover 1 | . . . . . . . . . . . . . 8 2 . . . . . . . . . . . 10 9 Device 9 | . . . 5 11 11 11 8 8 14 9 . 1 4 5 5 11 11 13 13 9 6 9 20 10 13 10 12 Storage 19 | . 14 14 18 22 22 22 22 27 26 26 30 28 20 20 20 20 21 20 20 20 17 15 15 16 15 16 16 Processor 2 | . . . . . . . . . . . . . . . . . . . . . . 4 5 4 4 6 8 Hackware 11 | . . . . . . . . . 5 7 7 7 7 6 8 10 6 6 6 6 19 20 15 22 21 15 12 Protection 9 | . 6 14 19 11 10 11 17 17 11 16 23 23 20 13 11 10 13 13 13 15 10 4 . . . 1 1 Energy Cannon 4 | . . . . . . . . 9 7 3 6 6 6 4 6 5 5 6 6 6 5 9 5 5 2 . 2 Ballistic Cannon 5 | . . . 21 22 22 21 17 9 7 6 7 7 6 6 6 6 . . . . 1 . . . . 1 . Naked Turns . | . . . . . . . . . . . . . . . . . . . . . . . . . . . . Heaviest Build 138 | 13 21 21 55 50 50 51 79 74 79 80 85 89 87 105 105 102 97 88 88 115 107 116 102 100 124 106 138 Greatest Support 163 | 26 26 26 40 40 40 40 43 40 44 44 44 44 44 100 100 28 160 160 160 160 160 160 155 163 140 150 160 Greatest Overweight (x) 6 | . . . 2 1 1 1 3 3 1 1 1 2 5 6 3 3 3 . . . 1 1 . 6 5 2 2 Average Overweight (x) . | . . . 1 1 1 1 1 2 1 1 1 1 4 1 2 3 1 . . . . . . 1 . . . Largest Inventory Capacity 22 | 6 8 8 16 16 16 16 22 22 22 22 22 22 22 22 22 22 22 22 22 22 22 22 22 22 22 22 22 Average Capacity 20 | 5 6 8 13 16 16 16 18 22 22 22 22 22 22 22 22 22 22 22 22 22 22 22 22 22 22 22 19 Most Carried 22 | 4 6 5 14 10 11 13 22 22 22 22 22 22 22 22 22 22 22 22 22 22 22 22 21 22 22 22 22 Average Carried 19 | 2 4 5 10 10 10 11 17 20 21 21 21 21 21 21 21 21 21 21 21 21 21 21 18 18 21 17 16 Final Capacity 16 | . . . . . . . . . . . . . . . . . . . . . . . . . . . 16 Final Carried 15 | . . . . . . . . . . . . . . . . . . . . . . . . . . . 15 Class Distribution -------------------- 36% | Bothacker-Mutant 18% | Hauler-Mutant 11% | Hacker-Mutant 11% | Scavenger-Mutant 9% | Mutant 3% | Commander-Mutant Dominant Class ---------------- Mutant | -10/Materials Mutant | -10/Mines Mutant | -9/Materials Mutant | -9/Mines Mutant | -9/Exiles Mutant | -8/Mines Hauler-Mutant | -8/Materials Hauler-Mutant | -8/Garrison Bothacker-Mutant | -7/Factory Bothacker-Mutant | -7/Garrison Hauler-Mutant | -7/Factory Bothacker-Mutant | -7/Garrison Bothacker-Mutant | -6/Factory Scavenger-Mutant | -6/Garrison Hauler-Mutant | -6/Factory Hauler-Mutant | -6/Extension Hauler-Mutant | -6/Cetus Hauler-Mutant | -6/Archives Hauler-Mutant | -6/Hub_04(d) Bothacker-Mutant | -6/Garrison Bothacker-Mutant | -5/Factory Hacker-Mutant | -4/Factory Bothacker-Mutant | -4/Garrison Bothacker-Mutant | -3/Research Bothacker-Mutant | -3/Garrison Hacker-Mutant | -2/Research Scavenger-Assassin | -1/Access Resources | -11 -10 -10 -9 -9 -9 -8 -8 -8 -7 -7 -7 -7 -6 -6 -6 -6 -6 -6 -6 -6 -5 -4 -4 -3 -3 -2 -1 ----------- Run | Scr Mat Min Mat Min Exi Min Mat Gar Fac Gar Fac Gar Fac Gar Fac Ext Cet Arc Hub Gar Fac Fac Gar Res Gar Res Acc Matter Collected 12710 | 247 8 30 574 25 . 579 1138 332 119 304 14 213 172 766 86 246 120 . . 103 1799 1090 480 668 1194 1490 913 Remotely . | . . . . . . . . . . . . . . . . . . . . . . . . . . . . Salvage Created 23830 | . 38 . 624 25 . 404 1287 908 312 348 14 228 205 1250 623 580 350 . 110 532 2618 4032 181 2486 2700 3480 495 Parts 1040 | . 2 . 48 3 . 35 84 37 15 18 4 22 12 58 19 25 15 . 4 23 96 134 16 104 107 116 43 Haulers Intercepted 4 | . . . 3 . . . . . . . . . . . 1 . . . . . . . . . . . . Recyclers Shooed 7 | . . . . . . . . . . . . . . . . . . . . . 2 1 . 3 . . 1 Parts Field Recycled . | . . . . . . . . . . . . . . . . . . . . . . . . . . . . Retrieved Matter . | . . . . . . . . . . . . . . . . . . . . . . . . . . . . Parts Self-Destructed . | . . . . . . . . . . . . . . . . . . . . . . . . . . . . Prevented . | . . . . . . . . . . . . . . . . . . . . . . . . . . . . Kills | -11 -10 -10 -9 -9 -9 -8 -8 -8 -7 -7 -7 -7 -6 -6 -6 -6 -6 -6 -6 -6 -5 -4 -4 -3 -3 -2 -1 ------- Run | Scr Mat Min Mat Min Exi Min Mat Gar Fac Gar Fac Gar Fac Gar Fac Ext Cet Arc Hub Gar Fac Fac Gar Res Gar Res Acc Combat Hostiles Destroyed 440 | . 3 . 20 3 . 15 34 23 7 6 . 14 2 28 8 17 7 . 1 15 57 55 16 24 39 40 6 Guns 11 | . 3 . . . . . . . . . . . . . . . 1 . . . 2 . . . . 4 1 Cannons 203 | . . . 20 3 . 15 34 23 7 1 . 3 2 4 1 5 . . . 3 22 28 2 13 6 7 4 AOE 124 | . . . . . . . . . . 5 . 11 . 15 . 10 5 . . 10 21 10 14 . 14 9 . Classes Destroyed 19 | . 1 . 6 . . 3 3 . 1 . . 1 . 1 . . . . . . 1 1 . . . 1 . Worker 17 | . . . . . . . 2 . . . . . . . . . . . . . 8 2 . 4 . . 1 Builder 21 | . . . 1 . . 2 1 . . . . . . . 1 . . . . . 3 4 . 1 . 5 3 Tunneler 1 | . . . . . . 1 . . . . . . . . . . . . . . . . . . . . . Hauler 7 | . . . 3 . . . . . . . . . . . 1 . . . . . 2 . . . . 1 . Recycler 10 | . . . 1 . . . 2 . . . . . 1 . . . . . . . 1 . . 4 . 1 . Mechanic 3 | . . . . . . . . . . . . . . . . . . . . . . 3 . . . . . Operator 2 | . . . 2 . . . . . . . . . . . . . . . . . . . . . . . . Watcher 13 | . . . . . . . 4 . . . 1 . 1 . . . 1 . 1 . . 4 . . . . 1 Swarmer 123 | . 3 . 10 3 . 3 7 3 . 3 . 11 . 14 . 10 3 . . 8 13 4 14 . 14 . . Saboteur 2 | . . . . . . . . . . . . . . . . . . . . . . . . . . 2 . Grunt 162 | . . . 6 . . 9 14 16 4 3 . 2 . 7 3 3 2 . . 6 26 24 . 7 10 20 . Brawler 8 | . . . . . . 2 1 . . . . . . . . . . . . . 3 2 . . . . . Duelist 14 | . . . . . . 1 1 . . . . . . . . . . . . . 2 3 . . 3 4 . Protector 7 | . . . . . . . . . . . . . . . . . . . . . 4 . . 1 . 2 . Sentry 49 | . . . 4 . . . 10 4 1 . . . . 3 3 2 . . . . 2 4 . 5 8 2 1 Specialist 1 | . . . . . . . . . . . . 1 . . . . . . . . . . . . . . . Hunter 26 | . . . . . . . 1 . . 3 . . . 3 2 1 . . 1 . 1 6 . 4 . 4 . Programmer 45 | . . . . . . . . . 2 . . . 2 1 . . . . . . 6 12 1 7 3 6 5 Behemoth 5 | . . . . . . . . . . . . . . 1 . 1 . . . 1 . . 1 . 1 . . Cetus Guard 2 | . . . . . . . . . . . . . . . . . 2 . . . . . . . . . . Thug 1 | . . . . . . . . . . . . . . . . . 1 . . . . . . . . . . Best Kill Streak 17 | . 3 . 8 3 . 5 5 3 3 3 1 8 1 4 3 8 6 . 1 7 9 11 13 17 10 12 3 Combat Bots Only 13 | . 3 . 8 3 . 3 5 3 3 3 . 8 1 4 1 8 5 . 1 7 9 7 13 11 10 11 2 Max Kills in Single Turn 7 | . 1 . 2 1 . 2 2 1 1 2 1 3 1 4 1 6 5 . 1 4 7 4 4 3 2 4 2 Gunslinging . | . . . . . . . . . . . . . . . . . . . . . . . . . . . . Exploded 6 | . . . . . . . . . . 2 . 3 . 4 . 6 4 . . 4 3 3 4 . 2 4 . Melee . | . . . . . . . . . . . . . . . . . . . . . . . . . . . . Uniques/NPCs Destroyed . | . . . . . . . . . . . . . . . . . . . . . . . . . . . . Combat | -11 -10 -10 -9 -9 -9 -8 -8 -8 -7 -7 -7 -7 -6 -6 -6 -6 -6 -6 -6 -6 -5 -4 -4 -3 -3 -2 -1 -------- Run | Scr Mat Min Mat Min Exi Min Mat Gar Fac Gar Fac Gar Fac Gar Fac Ext Cet Arc Hub Gar Fac Fac Gar Res Gar Res Acc Damage Taken 31784 | . 114 . 1245 106 . 991 2403 1034 401 214 . 425 295 1134 885 856 343 . 119 779 3932 2141 1133 3047 3799 4341 2047 Core 2668 | . 24 . 193 31 . 99 185 146 28 . . 62 38 68 61 69 . . 20 40 195 142 73 214 239 491 250 Absorbed by Shields 1179 | . . . . . . . . 18 51 6 . 33 . . . 140 123 . . . . 361 46 . 122 . 279 Reduced by Siege Mode 2063 | . . . . . . . . . . . . . . . . . . . . 49 357 249 151 375 323 559 . Core Remaining (%) 70 | 100 . 90 . . . 19 . 39 . . . 87 . . . . . . . 65 80 . 81 . 65 66 84 Volleys Fired 1523 | . 7 . 62 4 . 67 148 95 26 22 4 29 35 85 51 33 12 3 4 38 180 140 41 126 111 119 81 Largest 2 | . 2 . 2 2 . 2 2 2 2 2 2 2 2 2 1 2 2 2 2 2 2 2 2 2 1 2 2 Hottest 240 | . 100 . 78 74 . 74 114 114 114 87 90 78 78 78 75 143 130 130 130 130 162 210 210 210 105 160 240 Shots Fired 2105 | . 12 . 121 8 . 116 287 148 52 26 7 46 39 95 51 42 23 6 8 40 218 238 44 154 117 126 81 Gun 130 | . 12 . . . . . . . . . . . . . . . 11 3 4 2 9 . . . 20 40 29 Cannon 1745 | . . . 121 8 . 116 287 148 52 15 7 36 39 58 51 38 11 3 4 31 166 230 24 137 51 61 51 Launcher 180 | . . . . . . . . . . 6 . 10 . 37 . 4 1 . . 7 25 8 17 . 46 19 . Special 50 | . . . . . . . . . . 5 . . . . . . . . . . 18 . 3 17 . 6 1 Kinetic 815 | . . . 121 8 . 116 274 54 26 8 3 19 4 17 . 12 . . . 1 80 . . . 12 36 24 Thermal 519 | . 12 . . . . . 13 94 26 6 4 17 35 14 . 9 . . . 4 9 78 14 87 29 21 47 Explosive 83 | . . . . . . . . . . 2 . 10 . 9 . 4 1 . . 7 25 8 17 . . . . Electromagnetic 638 | . . . . . . . . . . 5 . . . 55 51 17 22 6 8 28 86 152 10 50 76 63 9 Robot Hit Streak 33 | . 4 . 10 10 . 11 10 20 18 8 3 8 13 27 10 12 4 2 5 9 22 32 17 24 25 33 8 Robot Miss Streak 8 | . 2 . 5 . . 5 8 3 5 5 5 3 6 2 5 3 2 2 3 1 3 3 1 3 3 2 3 Penetration Max 2 | . . . . . . . . . . . . . . . . . . . . . 2 . . . . . 1 Secondary Targets 2 | . 1 . . . . . . . . . . . . . . . . . . . . . . . . 1 . Max Gunslinging Chain 1 | . 1 . . . . . . . . . . . . . . . . . . . . . . . . 1 . Capacitor 10 | . . . . . . . . . . . . . . . . . . . . . . . . . . . 10 Shots Hit Robots 1371 | . 8 . 65 6 . 70 164 102 34 11 3 25 14 51 32 25 14 3 5 26 167 174 31 126 91 86 38 Core Hits 1012 | . 3 . 29 3 . 29 68 40 13 13 1 19 5 47 8 18 18 2 2 28 143 100 27 71 164 142 19 Critical Hits 71 | . . . 1 . . . 1 7 1 . . . . . 1 2 . . . . 40 2 . 3 2 2 9 Critical Kills 26 | . . . . . . . . 4 1 . . . . . . 1 . . . . 15 . . 3 . . 2 Critical Parts Destroyed 40 | . . . 1 . . . 1 3 . . . . . . 1 . . . . . 25 2 . . 1 1 5 Melee Attacks 16 | . . . . . . . . . . . . . . . . . . . . . . . . . 1 7 8 Thermal 1 | . . . . . . . . . . . . . . . . . . . . . . . . . 1 . . Impact . | . . . . . . . . . . . . . . . . . . . . . . . . . . . . Slashing 15 | . . . . . . . . . . . . . . . . . . . . . . . . . . 7 8 Piercing . | . . . . . . . . . . . . . . . . . . . . . . . . . . . . Sneak Attacks . | . . . . . . . . . . . . . . . . . . . . . . . . . . . . Combat Hostiles . | . . . . . . . . . . . . . . . . . . . . . . . . . . . . Follow-up Attacks . | . . . . . . . . . . . . . . . . . . . . . . . . . . . . Damage Inflicted 61959 | . 112 . 1367 119 . 1434 3319 2475 954 679 108 1692 449 3248 1212 1702 888 83 226 1694 9539 9439 2556 5589 5531 5759 1785 Guns 2385 | . 112 . . . . . . . . . . . . . . . 132 36 96 22 290 . . . 302 1083 312 Cannons 34297 | . . . 1367 119 . 1434 3319 2475 954 171 108 614 449 1114 1139 912 249 47 130 546 3980 6604 431 4359 1318 1175 1283 Explosions 25166 | . . . . . . . . . . 508 . 1078 . 2134 73 790 507 . . 1126 5269 2835 2125 1211 3911 3496 103 Melee 87 | . . . . . . . . . . . . . . . . . . . . . . . . . . . 87 Ramming 24 | . . . . . . . . . . . . . . . . . . . . . . . . 19 . 5 . Kinetic 11716 | . . . 1367 119 . 1434 3094 650 406 64 28 264 66 223 . 249 . . . . 1615 . . . 415 1111 611 Thermal 13416 | . 112 . . . . . 225 1825 548 172 80 350 383 354 73 235 129 . . 77 1466 2234 216 2838 1305 124 670 Explosive 14083 | . . . . . . . . . . 160 . 1078 . 1201 . 790 378 . . 977 4056 2533 2125 437 . 348 . Electromagnetic 22633 | . . . . . . . . . . 283 . . . 1470 1139 428 381 83 226 640 2402 4672 215 2295 3811 4171 417 Impact . | . . . . . . . . . . . . . . . . . . . . . . . . . . . . Slashing 87 | . . . . . . . . . . . . . . . . . . . . . . . . . . . 87 Piercing . | . . . . . . . . . . . . . . . . . . . . . . . . . . . . Highest Corruption 26 | . . . . . . . . . 2 4 4 5 2 3 3 4 1 . . 6 8 2 1 21 26 23 11 Average Corruption 6 | . . . . . . . . . 1 2 4 4 1 2 3 2 1 . . 5 3 1 1 10 12 14 7 Corruption Purged 51 | . . . . . . . . . . . . . . . . 3 1 . . . 9 3 . . 28 . 7 Effects 380 | . . . . . . . . . 2 5 8 9 3 32 12 8 . . . 5 29 8 1 36 124 62 36 Message Errors 76 | . . . . . . . . . 1 1 3 2 1 4 . 4 . . . 1 9 2 . 6 32 6 4 Matter Fused 78 | . . . . . . . . . . . . 1 . 8 4 1 . . . 1 7 . . 4 34 10 8 Heat Flow Errors 32 | . . . . . . . . . . 1 2 2 . 2 4 . . . . . 3 1 . 5 7 2 3 Energy Discharges 42 | . . . . . . . . . . 2 1 . 2 7 1 1 . . . . 3 . . 2 16 4 3 Parts Rejected 4 | . . . . . . . . . . . . . . . . . . . . . 1 . . 1 . . 2 Data Loss (minor) 47 | . . . . . . . . . 1 1 2 . . 7 2 2 . . . 2 2 1 . 7 15 4 1 Data Loss (major) 13 | . . . . . . . . . . . . . . . . . . . . . 2 . . 2 4 4 1 Misfires 8 | . . . . . . . . . . . . . . . . . . . . 1 . . . . 6 1 . Alerts 6 | . . . . . . . . . . . . . . . . . . . . . . . . 1 3 1 1 Misdirections 15 | . . . . . . . . . . . . . . . . . . . . . . . . . 4 9 2 Targeting Errors 50 | . . . . . . . . . . . . 4 . 2 1 . . . . . 1 4 1 8 3 18 8 Weapon Failures 9 | . . . . . . . . . . . . . . 2 . . . . . . 1 . . . . 3 3 Overload Shots 9 | . . . . . . . . . . . 1 . . . . . . . . . . . . . . . 8 Overflow Damage 2128 | . . . 31 . . 18 42 54 46 15 4 96 . 49 33 6 . . 9 13 494 537 18 315 185 107 56 Projectiles 1232 | . . . 31 . . 18 42 54 46 3 4 73 . 1 33 . . . 9 . 103 437 12 166 146 6 48 Explosions 896 | . . . . . . . . . . 12 . 23 . 48 . 6 . . . 13 391 100 6 149 39 101 8 Melee . | . . . . . . . . . . . . . . . . . . . . . . . . . . . . Knockbacks 106 | . . . 10 2 . 17 33 5 4 1 . 3 2 . . . . . . . 12 . . . 5 4 8 Impact . | . . . . . . . . . . . . . . . . . . . . . . . . . . . . Kinetic 103 | . . . 8 2 . 17 33 5 4 1 . 3 2 . . . . . . . 11 . . . 5 4 8 Secondary 3 | . . . 2 . . . . . . . . . . . . . . . . . 1 . . . . . . Self-Inflicted Damage 1659 | . . . . . . . . . . 74 . 16 . 154 . . 34 . . . 231 69 . 120 405 475 81 Shots 79 | . . . . . . . . . . 3 . 1 . 7 . . 1 . . . 6 6 . 1 27 25 2 Rammed 4 | . . . . . . . . . . . . . . . . . . . . . . . . 3 . 1 . Targets Rammed 4 | . . . . . . . . . . . . . . . . . . . . . . . . 3 . 1 . Kicked . | . . . . . . . . . . . . . . . . . . . . . . . . . . . . Crushed . | . . . . . . . . . . . . . . . . . . . . . . . . . . . . Highest Temperature 405 | . 215 . 324 54 . 197 397 153 194 204 263 256 335 213 210 188 186 94 184 190 314 380 108 198 311 199 405 Average Temperature 88 | . 118 . 108 23 . 92 79 43 47 75 104 90 84 63 111 79 69 45 73 85 77 68 43 106 104 91 130 Received Heat Transfer 5972 | . . . 420 . . 513 900 534 127 34 . 42 . 207 105 180 38 . 18 189 855 288 103 300 357 648 114 Effects 17 | . . . 2 . . . 1 . . . 2 . . . . . . . . . 3 . . . . . 9 Energy Bleed 3 | . . . 2 . . . . . . . . . . . . . . . . . 1 . . . . . . Interference 13 | . . . . . . . . . . . 2 . . . . . . . . . 2 . . . . . 9 Matter Decay 1 | . . . . . . . 1 . . . . . . . . . . . . . . . . . . . . Siege Activations 64 | . . . . . . . . . . . . . . . . . . . 1 4 16 22 2 6 8 5 . Total Turns 2139 | . . . . . . . . . . . . . . . . . . . 6 107 280 308 121 198 952 167 . Longest Duration 750 | . . . . . . . . . . . . . . . . . . . 6 46 34 32 70 48 750 55 . Robots Corrupted 103 | . . . . . . . . . . . . . . 9 8 2 1 . 1 2 12 17 . 11 19 20 1 Combat Hostiles 102 | . . . . . . . . . . . . . . 9 7 2 1 . 1 2 12 17 . 11 19 20 1 Parts Fried 229 | . . . . . . . . . . 1 . . . 14 9 5 2 . 4 2 12 57 . 29 41 51 2 Impact Corruptions . | . . . . . . . . . . . . . . . . . . . . . . . . . . . . Robots Melted . | . . . . . . . . . . . . . . . . . . . . . . . . . . . . Combat Hostiles . | . . . . . . . . . . . . . . . . . . . . . . . . . . . . Parts Melted 18 | . 4 . 1 . . . . 1 . . . . 3 . . . . . . . . 6 . 2 1 . . Heat Transferred 13708 | . 333 . . . . . 333 2441 740 248 111 444 481 394 100 325 100 . . 50 1005 2002 222 2579 1080 237 483 Parts Sabotaged 3 | . . . . . . . . . . . . . . . . . . . . . 1 2 . . . . . Parts Stolen . | . . . . . . . . . . . . . . . . . . . . . . . . . . . . Parts Stripped . | . . . . . . . . . . . . . . . . . . . . . . . . . . . . Power Chain Reactions 25 | . . . . . . . . . . 4 . . . 2 1 . 1 . . 1 1 1 . 1 11 1 1 Missiles Intercepted . | . . . . . . . . . . . . . . . . . . . . . . . . . . . . Latent Energy Used 1428 | . . . . . . . . . . 87 . . . . . . . . . 183 . . . 292 491 375 . LE Corruption 39 | . . . . . . . . . . 2 . . . . . . . . . 6 . . . 9 14 8 . Alert | -11 -10 -10 -9 -9 -9 -8 -8 -8 -7 -7 -7 -7 -6 -6 -6 -6 -6 -6 -6 -6 -5 -4 -4 -3 -3 -2 -1 ------- Run | Scr Mat Min Mat Min Exi Min Mat Gar Fac Gar Fac Gar Fac Gar Fac Ext Cet Arc Hub Gar Fac Fac Gar Res Gar Res Acc Peak Influence 1909 | . 60 26 293 143 . 167 421 1133 655 708 380 730 444 1186 730 811 853 337 117 441 1909 1614 1613 1221 1829 1398 895 Average Influence 695 | . 33 24 133 130 . 60 165 732 521 458 374 491 204 523 656 437 623 273 77 239 1026 933 1524 909 1114 1107 608 Maximum Alert Level 5 | . . . 1 . . . 2 4 2 3 1 3 2 4 3 3 3 1 . 2 5 5 5 4 5 4 3 Low Security (%) 18 | . . . . . . . . . . . . . . . . . . . . . . . . . . . . Level 1 12 | . . . . . . . . . . . . . . . . . . . . . . . . . . . . Level 2 21 | . . . . . . . . . . . . . . . . . . . . . . . . . . . . Level 3 30 | . . . . . . . . . . . . . . . . . . . . . . . . . . . . Level 4 11 | . . . . . . . . . . . . . . . . . . . . . . . . . . . . Level 5 5 | . . . . . . . . . . . . . . . . . . . . . . . . . . . . High Security . | . . . . . . . . . . . . . . . . . . . . . . . . . . . . Max Security . | . . . . . . . . . . . . . . . . . . . . . . . . . . . . Squads Dispatched 78 | . . . 3 . . . 6 . 6 . . . 3 . 3 . . . 1 . 12 15 . 9 4 10 6 Investigation 7 | . . . . . . . 1 . 1 . . . 1 . 1 . . . . . 1 1 . . . . 1 Extermination 22 | . . . . . . . . . 2 . . . 2 . . . . . 1 . 3 5 . 3 . 3 3 Reinforcement 16 | . . . 3 . . . 2 . . . . . . . 2 . . . . . 2 3 . 2 . 2 . Assault 26 | . . . . . . . . . . . . . . . . . . . . . 6 6 . 3 4 5 2 Garrison 7 | . . . . . . . 3 . 3 . . . . . . . . . . . . . . 1 . . . Intercept . | . . . . . . . . . . . . . . . . . . . . . . . . . . . . Construction Impeded 7 | . . . . . . . 1 . . . . . . . 1 . . . . . 1 2 . 1 . 1 . Haulers Reinforced 2 | . . . . . . . . . . . . . . . 1 . . . . . . 1 . . . . . Alert ID Control Effect 6 | . . . . . . . . . . . . . . . . . . . . . . . 6 . . . . Stealth | -11 -10 -10 -9 -9 -9 -8 -8 -8 -7 -7 -7 -7 -6 -6 -6 -6 -6 -6 -6 -6 -5 -4 -4 -3 -3 -2 -1 --------- Run | Scr Mat Min Mat Min Exi Min Mat Gar Fac Gar Fac Gar Fac Gar Fac Ext Cet Arc Hub Gar Fac Fac Gar Res Gar Res Acc Distress Signals 18 | . . . 1 . . . 1 . . . . . . . 1 2 2 . 1 . . 7 . 2 . 1 . Communications Jammed . | . . . . . . . . . . . . . . . . . . . . . . . . . . . . Distress Signals . | . . . . . . . . . . . . . . . . . . . . . . . . . . . . Times Spotted 649 | . 3 . 29 3 . 16 60 31 10 13 2 14 6 38 15 29 19 3 5 11 75 87 14 39 46 61 20 Peak Tracking Total 11 | . 3 . 8 3 . 3 5 4 4 5 1 7 2 4 4 11 8 1 3 7 6 7 4 5 8 10 6 Tactical Retreats 61 | . . . 3 . . 1 5 11 1 . . 3 . 7 1 . . . . 1 7 5 2 . 4 6 4 Traps | -11 -10 -10 -9 -9 -9 -8 -8 -8 -7 -7 -7 -7 -6 -6 -6 -6 -6 -6 -6 -6 -5 -4 -4 -3 -3 -2 -1 ------- Run | Scr Mat Min Mat Min Exi Min Mat Gar Fac Gar Fac Gar Fac Gar Fac Ext Cet Arc Hub Gar Fac Fac Gar Res Gar Res Acc Traps Triggered 37 | . . . 1 . . . 1 5 . 3 . 2 1 9 1 1 . . . . 1 1 . . 11 . . Indirectly 10 | . . . . . . . . . . . . . . 2 . . . . . . . . . . 8 . . Trap Hack Attempts . | . . . . . . . . . . . . . . . . . . . . . . . . . . . . Triggered . | . . . . . . . . . . . . . . . . . . . . . . . . . . . . Disarmed . | . . . . . . . . . . . . . . . . . . . . . . . . . . . . Reprogrammed . | . . . . . . . . . . . . . . . . . . . . . . . . . . . . Reused . | . . . . . . . . . . . . . . . . . . . . . . . . . . . . Traps Extracted . | . . . . . . . . . . . . . . . . . . . . . . . . . . . . Installed . | . . . . . . . . . . . . . . . . . . . . . . . . . . . . Triggered 1 | . . . . . . . . . . . . . . . . . . . . . . . . 1 . . . Machines | -11 -10 -10 -9 -9 -9 -8 -8 -8 -7 -7 -7 -7 -6 -6 -6 -6 -6 -6 -6 -6 -5 -4 -4 -3 -3 -2 -1 ---------- Run | Scr Mat Min Mat Min Exi Min Mat Gar Fac Gar Fac Gar Fac Gar Fac Ext Cet Arc Hub Gar Fac Fac Gar Res Gar Res Acc Machines Disabled 81 | . . . 3 . . . 4 5 . . . 3 . 7 1 5 . . . 2 33 8 1 3 1 3 2 Max in Single Turn 24 | . . . 1 . . . 1 1 . . . 1 . 2 1 1 . . . 1 24 2 1 1 1 1 1 Garrison Access 1 | . . . . . . . . . . . . . . . . . . . . . . . . . . . 1 Garrison Relay 9 | . . . . . . . . 3 . . . 1 . 2 . . . . . 1 . . 1 . 1 . . Phase Generator 1 | . . . . . . . . . . . . . . 1 . . . . . . . . . . . . . Energy Cycler 1 | . . . . . . . . . . . . . . . . 1 . . . . . . . . . . . Machines Sabotaged . | . . . . . . . . . . . . . . . . . . . . . . . . . . . . Garrisons Compromised . | . . . . . . . . . . . . . . . . . . . . . . . . . . . . Overloaded Fab Kills . | . . . . . . . . . . . . . . . . . . . . . . . . . . . . Fab Network Shutdowns 2 | . . . . . . . . . . . . . . . . . . . . . 1 . . . . . 1 Hacking | -11 -10 -10 -9 -9 -9 -8 -8 -8 -7 -7 -7 -7 -6 -6 -6 -6 -6 -6 -6 -6 -5 -4 -4 -3 -3 -2 -1 --------- Run | Scr Mat Min Mat Min Exi Min Mat Gar Fac Gar Fac Gar Fac Gar Fac Ext Cet Arc Hub Gar Fac Fac Gar Res Gar Res Acc Machines Accessed 96 | . 1 1 3 . . . 12 . 5 . 1 . 6 . 6 10 4 . 3 . 9 13 . 1 . 5 16 Terminals 70 | . 1 1 3 . . . 9 . 2 . . . 2 . 6 10 4 . 2 . 4 10 . . . 4 12 Fabricators 5 | . . . . . . . . . 1 . . . 2 . . . . . . . 1 . . . . . 1 Repair Stations 7 | . . . . . . . . . . . . . . . . . . . . . 3 2 . . . 1 1 Recycling Units 2 | . . . . . . . 1 . . . . . . . . . . . . . . . . . . . 1 Scanalyzers 4 | . . . . . . . 1 . 1 . . . 1 . . . . . . . 1 . . . . . . Garrison Access 8 | . . . . . . . 1 . 1 . 1 . 1 . . . . . 1 . . 1 . 1 . . 1 Total Hacks 316 | . 3 1 10 . . . 28 . 14 . 1 . 17 . 17 25 7 . 9 . 28 65 . 1 . 22 68 Successful 171 | . . 1 3 . . . 18 . 10 . 1 . 12 . 8 15 4 . 6 . 19 34 . 1 . 7 32 Failed 144 | . 3 . 7 . . . 10 . 4 . . . 5 . 9 10 3 . 3 . 8 31 . . . 15 36 Catastrophic 27 | . 2 . 3 . . . 2 . . . . . . . 1 1 . . . . 1 9 . . . 3 5 Database Lockouts 1 | . . . . . . . . . . . . . . . . . . . . . 1 . . . . . . Manual 139 | . 3 1 7 . 1 . 10 . 2 . . . 6 . 6 17 7 . 3 . 10 33 . . . 11 22 Terminals 239 | . 3 1 10 . . . 22 . 4 . . . 8 . 17 25 7 . 8 . 12 55 . . . 20 47 Fabricators 25 | . . . . . . . . . 6 . . . 5 . . . . . . . 2 . . . . . 12 Repair Stations 23 | . . . . . . . . . . . . . . . . . . . . . 9 9 . . . 2 3 Recycling Units 7 | . . . . . . . 3 . . . . . . . . . . . . . . . . . . . 4 Scanalyzers 12 | . . . . . . . 2 . 2 . . . 3 . . . . . . . 5 . . . . . . Garrison Access 10 | . . . . . . . 1 . 2 . 1 . 1 . . . . . 1 . . 1 . 1 . . 2 Terminal Hacks 76 | . . . 2 . . . 10 . 1 . . . 2 . 6 8 3 . 4 . 3 19 . . . 3 15 Part Schematic 3 | . . . . . . . . . . . . . . . . . . . . . 1 1 . . . . 1 Robot Analysis 1 | . . . . . . . . . . . . . . . . . . . . . . 1 . . . . . Prototype ID Bank 12 | . . . . . . . 1 . . . . . . . 2 2 . . 1 . . 4 . . . . 2 Open Door 6 | . . . . . . . . . . . . . . . 1 2 1 . . . . . . . . . 2 Level Access Points 2 | . . . . . . . . . . . . . . . . . . . 1 . . . . . . . 1 Branch Access Points 3 | . . . . . . . 1 . 1 . . . . . . . . . . . . 1 . . . . . Emergency Access Points 1 | . . . . . . . . . . . . . . . . . . . 1 . . . . . . . . Machine Index 2 | . . . . . . . . . . . . . . . . . . . . . . 1 . . . . 1 Terminal Index 3 | . . . . . . . . . . . . . . . 1 1 . . . . . 1 . . . . . Fabricator Index 1 | . . . . . . . . . . . . . 1 . . . . . . . . . . . . . . Unreport Threat 24 | . . . 2 . . . 1 . . . . . 1 . 1 3 2 . 1 . 2 6 . . . 2 3 Locate Traps 3 | . . . . . . . 2 . . . . . . . . . . . . . . 1 . . . . . Recall Extermination 2 | . . . . . . . . . . . . . . . . . . . . . . 1 . . . . 1 Recall Assault 2 | . . . . . . . . . . . . . . . . . . . . . . . . . . . 2 Hauler Manifests 5 | . . . . . . . 1 . . . . . . . 1 . . . . . . 1 . . . 1 1 Registered Prototypes 2 | . . . . . . . 1 . . . . . . . . . . . . . . 1 . . . . . Zone Layout 4 | . . . . . . . 3 . . . . . . . . . . . . . . . . . . . 1 Fabricator Hacks 15 | . . . . . . . . . 4 . . . 4 . . . . . . . 2 . . . . . 5 Network Status 1 | . . . . . . . . . 1 . . . . . . . . . . . . . . . . . . Load Schematic 6 | . . . . . . . . . 1 . . . 2 . . . . . . . 1 . . . . . 2 Build 8 | . . . . . . . . . 2 . . . 2 . . . . . . . 1 . . . . . 3 Repair Station Hacks 18 | . . . . . . . . . . . . . . . . . . . . . 8 6 . . . 2 2 Scan Component 9 | . . . . . . . . . . . . . . . . . . . . . 4 3 . . . 1 1 Repair 9 | . . . . . . . . . . . . . . . . . . . . . 4 3 . . . 1 1 Recycling Unit Hacks 4 | . . . . . . . 3 . . . . . . . . . . . . . . . . . . . 1 Process 1 | . . . . . . . 1 . . . . . . . . . . . . . . . . . . . . Report Inventory 1 | . . . . . . . 1 . . . . . . . . . . . . . . . . . . . . Retrieve Matter 1 | . . . . . . . 1 . . . . . . . . . . . . . . . . . . . . Retrieve Components 1 | . . . . . . . . . . . . . . . . . . . . . . . . . . . 1 Scanalyzer 12 | . . . . . . . 2 . 2 . . . 3 . . . . . . . 5 . . . . . . Insert Component 6 | . . . . . . . 1 . 1 . . . 1 . . . . . . . 3 . . . . . . Analyze 6 | . . . . . . . 1 . 1 . . . 2 . . . . . . . 2 . . . . . . Garrison Access Hacks 10 | . . . . . . . 1 . 2 . 1 . 1 . . . . . 1 . . 1 . 1 . . 2 Unlock Access 7 | . . . . . . . 1 . 1 . 1 . 1 . . . . . 1 . . 1 . 1 . . . Seal Access 1 | . . . . . . . . . . . . . . . . . . . . . . . . . . . 1 Coupler Status 2 | . . . . . . . . . 1 . . . . . . . . . . . . . . . . . 1 Unauthorized Hacks 88 | . . 2 2 . . . 5 . 3 . . . 4 . 6 15 2 . 2 . 2 20 . . . 4 21 Terminals 36 | . . 1 1 . . . 2 . 1 . . . 2 . 2 7 1 . 1 . 1 8 . . . 2 7 Track 1 | . . 1 . . . . . . . . . . . . . . . . . . . . . . . . . Assimilate 7 | . . . . . . . . . . . . . . . 1 2 . . . . . 3 . . . . 1 Botnet 23 | . . . 1 . . . 2 . 1 . . . 2 . 1 3 1 . 1 . 1 3 . . . 2 5 Disrupt 4 | . . . . . . . . . . . . . . . . 2 . . . . . 2 . . . . . Operators 1 | . . . . . . . . . . . . . . . . . . . . . . . . . . . 1 Fabricators . | . . . . . . . . . . . . . . . . . . . . . . . . . . . . Repair Stations . | . . . . . . . . . . . . . . . . . . . . . . . . . . . . Recycling Units . | . . . . . . . . . . . . . . . . . . . . . . . . . . . . Scanalyzers . | . . . . . . . . . . . . . . . . . . . . . . . . . . . . Garrison Access . | . . . . . . . . . . . . . . . . . . . . . . . . . . . . Data Cores Recovered . | . . . . . . . . . . . . . . . . . . . . . . . . . . . . Used . | . . . . . . . . . . . . . . . . . . . . . . . . . . . . Hacking Detections 79 | . 1 . 3 . . . 8 . 4 . . . 5 . 6 10 4 . 2 . 7 13 . . . 4 12 Full Trace Events 7 | . 1 . . . . . 1 . 1 . . . 1 . 1 . . . . . . 1 . . . . 1 Feedback Events . | . . . . . . . . . . . . . . . . . . . . . . . . . . . . Feedback Blocked . | . . . . . . . . . . . . . . . . . . . . . . . . . . . . Robot Schematics Acquired . | . . . . . . . . . . . . . . . . . . . . . . . . . . . . Robots Built . | . . . . . . . . . . . . . . . . . . . . . . . . . . . . Matter . | . . . . . . . . . . . . . . . . . . . . . . . . . . . . Time . | . . . . . . . . . . . . . . . . . . . . . . . . . . . . Total Robot Build Rating . | . . . . . . . . . . . . . . . . . . . . . . . . . . . . Part Schematics Acquired 8 | . . . . . . . 1 . 1 . . . 1 . . . . . . . 3 1 . . . . 1 Parts Built 12 | . . . . . . . . . 2 . . . 4 . . . . . . . 1 . . . . . 5 Matter 1754 | . . . . . . . . . 292 . . . 336 . . . . . . . 285 . . . . . 841 Time 520 | . . . . . . . . . 146 . . . 84 . . . . . . . 76 . . . . . 214 Total Part Build Rating 68 | . . . . . . . . . 6 . . . 16 . . . . . . . 5 . . . . . 41 Parts Repaired 9 | . . . . . . . . . . . . . . . . . . . . . 4 3 . . . 1 1 Time 550 | . . . . . . . . . . . . . . . . . . . . . 362 122 . . . 40 26 Parts Recycled . | . . . . . . . . . . . . . . . . . . . . . . . . . . . . Recycled Matter 198 | . . . . . . . 198 . . . . . . . . . . . . . . . . . . . . Retrieved Matter 435 | . . . . . . . 435 . . . . . . . . . . . . . . . . . . . . Retrieved Components 3 | . . . . . . . . . . . . . . . . . . . . . . . . . . . 3 Parts Scanalyzed 5 | . . . . . . . 1 . 1 . . . 1 . . . . . . . 2 . . . . . . Part Schematics Acquired 5 | . . . . . . . 1 . 1 . . . 1 . . . . . . . 2 . . . . . . Parts Damaged . | . . . . . . . . . . . . . . . . . . . . . . . . . . . . Bothacking | -11 -10 -10 -9 -9 -9 -8 -8 -8 -7 -7 -7 -7 -6 -6 -6 -6 -6 -6 -6 -6 -5 -4 -4 -3 -3 -2 -1 ------------ Run | Scr Mat Min Mat Min Exi Min Mat Gar Fac Gar Fac Gar Fac Gar Fac Ext Cet Arc Hub Gar Fac Fac Gar Res Gar Res Acc Used RIF Installer 7 | . . . . . . . . 1 . 1 . 1 . 1 . . . . . 1 . . 1 . 1 . . Coupler Efficiency 1 | . . . . . . . . . . . . . . . . . . . . . . . . . 1 . . Robot Detection 1 | . . . . . . . . . . 1 . . . . . . . . . . . . . . . . . Patrol Navigation 1 | . . . . . . . . . . . . 1 . . . . . . . . . . . . . . . Alert ID Control 1 | . . . . . . . . . . . . . . . . . . . . 1 . . . . . . . Autooverride 2 | . . . . . . . . . . . . . . 1 . . . . . . . . 1 . . . . Robots Hacked 20 | . . . . . . . . . . 1 . . . . . . . . . . 4 . 3 10 . 1 1 Non-combat 11 | . . . . . . . . . . . . . . . . . . . . . 4 . . 5 . 1 1 Combat 9 | . . . . . . . . . . 1 . . . . . . . . . . . . 3 5 . . . Autooverrided 2 | . . . . . . . . . . . . . . . . . . . . . . . . 2 . . . Robot Hacks Applied 26 | . . . . . . . . . . 2 . . . . . . . . . . 6 . 3 13 . 1 1 parse_system 2 | . . . . . . . . . . 1 . . . . . . . . . . . . 1 . . . . ignore_repairs 1 | . . . . . . . . . . . . . . . . . . . . . . . . . . . 1 drop_inventory 1 | . . . . . . . . . . . . . . . . . . . . . . . . 1 . . . ignore_parts 3 | . . . . . . . . . . . . . . . . . . . . . . . . 3 . . . deconstruct_bot 1 | . . . . . . . . . . . . . . . . . . . . . 1 . . . . . . purge_threat 3 | . . . . . . . . . . . . . . . . . . . . . 1 . . 2 . . . block_reporting 1 | . . . . . . . . . . . . . . . . . . . . . . . . 1 . . . disable_weapons 1 | . . . . . . . . . . . . . . . . . . . . . . . . 1 . . . reboot_system 4 | . . . . . . . . . . . . . . . . . . . . . . . 1 3 . . . streamctrl_low 5 | . . . . . . . . . . . . . . . . . . . . . 4 . . . . 1 . formatsys_low 1 | . . . . . . . . . . . . . . . . . . . . . . . . 1 . . . formatsys_high 3 | . . . . . . . . . . 1 . . . . . . . . . . . . 1 1 . . . Relay Couplers Released 35 | . . . . . . . . 13 . . . 5 . 8 . . . . . 3 . . 3 . 3 . . Machine Destruction 35 | . . . . . . . . 13 . . . 5 . 8 . . . . . 3 . . 3 . 3 . . Attached 7 | . . . . . . . . . . 1 . . . . . . . . . . 1 . 1 4 . . . Robots Rewired 27 | . . . . . . . . . . 6 . . . 14 . 7 . . . . . . . . . . . Allies Hacked 1 | . . . . . . . . . . . . . . . . . . . . . . . . 1 . . . Hacks Repelled 1 | . . . . . . . . . . . . . . . . . . . . . 1 . . . . . . Allies | -11 -10 -10 -9 -9 -9 -8 -8 -8 -7 -7 -7 -7 -6 -6 -6 -6 -6 -6 -6 -6 -5 -4 -4 -3 -3 -2 -1 -------- Run | Scr Mat Min Mat Min Exi Min Mat Gar Fac Gar Fac Gar Fac Gar Fac Ext Cet Arc Hub Gar Fac Fac Gar Res Gar Res Acc Total Allies 56 | . . . . . . . . . . 7 . . . 14 1 15 5 . . . 4 3 1 4 . 1 1 Largest Group 12 | . . . . . . . . . . 6 . . . 11 8 12 9 5 4 . 1 2 2 3 . . 1 Highest-Rated Group 707 | . . . . . . . . . . 160 . . . 274 214 482 707 389 369 . 28 47 82 146 . . 44 Highest-Rated Ally 156 | . . . . . . . . . . 38 . . . 38 38 156 149 94 94 . 28 26 56 64 . . 44 Total Orders 61 | . . . . . . . . . . . . . . . 6 5 . . 1 . 2 25 2 14 . 5 1 STAY 11 | . . . . . . . . . . . . . . . 1 1 . . 1 . 1 1 1 3 . 2 . GOTO 26 | . . . . . . . . . . . . . . . 2 2 . . . . . 14 1 6 . . 1 FOLLOW 19 | . . . . . . . . . . . . . . . 2 2 . . . . . 10 . 5 . . . AID 1 | . . . . . . . . . . . . . . . . . . . . . 1 . . . . . . EXPLORE 4 | . . . . . . . . . . . . . . . 1 . . . . . . . . . . 3 . Ally Attacks 385 | . . . . . . . . . . 49 . . . 72 50 125 54 19 . . . . 9 7 . . . Total Damage 9803 | . . . . . . . . . . 1150 . . . 1540 1061 2700 1861 746 . . . . 428 317 . . . Kills 62 | . . . . . . . . . . 11 . . . 7 3 21 10 4 . . . . 6 . . . . Allies Corrupted 1 | . . . . . . . . . . . . . . . 1 . . . . . . . . . . . . Allies Melted . | . . . . . . . . . . . . . . . . . . . . . . . . . . . . Turrets Deployed 1 | . . . . . 1 . . . . . . . . . . . . . . . . . . . . . . Intel | -11 -10 -10 -9 -9 -9 -8 -8 -8 -7 -7 -7 -7 -6 -6 -6 -6 -6 -6 -6 -6 -5 -4 -4 -3 -3 -2 -1 ------- Run | Scr Mat Min Mat Min Exi Min Mat Gar Fac Gar Fac Gar Fac Gar Fac Ext Cet Arc Hub Gar Fac Fac Gar Res Gar Res Acc Robot Analysis Total 1 | . . . . . . . . . . . . . . . . . . . . . . 1 . . . . . Derelict Logs Recovered . | . . . . . . . . . . . . . . . . . . . . . . . . . . . . Drone Launches 12 | . . . . . . . . . . . . . . . 2 . . . . . . . . . . 10 . Drone Recoveries . | . . . . . . . . . . . . . . . . . . . . . . . . . . . . Exploration | -11 -10 -10 -9 -9 -9 -8 -8 -8 -7 -7 -7 -7 -6 -6 -6 -6 -6 -6 -6 -6 -5 -4 -4 -3 -3 -2 -1 ------------- Run | Scr Mat Min Mat Min Exi Min Mat Gar Fac Gar Fac Gar Fac Gar Fac Ext Cet Arc Hub Gar Fac Fac Gar Res Gar Res Acc Turns Passed 28385 | 54 278 198 799 105 533 918 2272 1351 1160 539 362 393 1018 1720 801 672 444 86 253 448 2483 2603 923 1080 4024 1375 1493 Spaces Moved 12548 | 44 270 199 428 39 292 389 978 645 550 242 160 168 563 714 441 395 219 44 141 176 1066 986 417 381 559 810 1232 Core 2 | 2 . . . . . . . . . . . . . . . . . . . . . . . . . . . Treads 7962 | . . . 146 39 292 389 853 261 550 242 160 168 82 619 101 . 190 44 141 176 1066 986 417 289 558 193 . Legs 567 | . . . . . . . . . . . . . . . . . . . . . . . . . . 72 495 Wheels 2735 | 42 270 199 282 . . . 125 384 . . . . 481 95 340 395 29 . . . . . . 92 1 . . Hover 1282 | . . . . . . . . . . . . . . . . . . . . . . . . . . 545 737 Flight . | . . . . . . . . . . . . . . . . . . . . . . . . . . . . Fastest Speed 44 | 50 90 90 90 180 180 180 115 115 165 165 165 165 150 150 130 130 130 160 160 160 160 160 160 140 140 46 44 Average Speed 145 | 88 90 90 129 180 180 180 171 150 170 165 165 172 152 178 141 130 168 160 160 160 165 161 160 158 163 94 74 Slowest Speed 240 | 90 90 90 180 180 180 180 220 220 180 165 165 185 165 240 180 130 180 160 160 160 180 180 160 180 180 210 180 Overloaded Moves . | . . . . . . . . . . . . . . . . . . . . . . . . . . . . Propulsion Burnouts . | . . . . . . . . . . . . . . . . . . . . . . . . . . . . Robots Hopped . | . . . . . . . . . . . . . . . . . . . . . . . . . . . . Cave-ins Triggered 1 | . . . . . . . . . . . . . . . . . . . . . . . . . . . 1 Exploration Rate (%) 41 | 4 32 43 42 9 66 75 85 68 18 43 4 43 13 94 17 57 76 65 15 41 25 29 62 12 79 26 26 Regions Visited 27 Branch Regions 8 Pre-discovered Areas . | . . . . . . . . . . . . . . . . . . . . . . . . . . . . Known Exits Taken 7 | . . . . . . . 1 . 1 . 1 . 1 . . . . . 1 . . 1 . 1 . . . Unknown Exits Taken 13 | 1 1 1 1 1 1 1 . . . . . . . . 1 1 1 1 . . 1 . . . . 1 . Scrap Searched 1 | . . . . . . 1 . . . . . . . . . . . . . . . . . . . . . Spaces Dug 268 | . . . . . . . 3 . . 12 1 . 5 114 . 41 17 . . 1 3 14 10 5 . 28 14 Terrain Destroyed 1382 | . . . 5 . . 7 33 . . 29 2 62 11 196 3 66 19 . . 13 389 176 137 56 54 88 36 Melee 11 | . . . . . . . . . . . . . . . . . . . . . . . . . . 6 5 Projectile 194 | . . . 5 . . 7 33 . . . 2 . 11 1 . 3 . . . 1 30 28 7 12 7 29 18 AOE 1177 | . . . . . . . . . . 29 . 62 . 195 3 63 19 . . 12 359 148 130 44 47 53 13 Actions | -11 -10 -10 -9 -9 -9 -8 -8 -8 -7 -7 -7 -7 -6 -6 -6 -6 -6 -6 -6 -6 -5 -4 -4 -3 -3 -2 -1 --------- Run | Scr Mat Min Mat Min Exi Min Mat Gar Fac Gar Fac Gar Fac Gar Fac Ext Cet Arc Hub Gar Fac Fac Gar Res Gar Res Acc Total 20550 | 59 292 217 554 66 298 491 1283 883 723 351 254 225 689 1061 571 509 271 54 160 302 1572 1741 629 709 3557 1305 1724 Wait 5041 | . 8 19 24 24 . 23 75 71 114 41 72 12 55 110 48 31 11 6 13 70 215 472 147 143 2793 186 258 Move 12527 | 43 269 198 427 38 291 388 978 644 550 241 160 167 563 713 440 394 218 43 141 175 1065 986 416 381 558 809 1231 Hop . | . . . . . . . . . . . . . . . . . . . . . . . . . . . . Pick Up 420 | 10 4 . 20 . 2 6 41 17 14 6 7 4 15 19 12 4 10 1 1 6 41 34 8 17 26 40 55 Fast Attach . | . . . . . . . . . . . . . . . . . . . . . . . . . . . . Attach 227 | 6 2 . 7 . . 7 16 6 3 3 2 . 3 4 4 2 2 . . 2 17 10 7 9 24 58 33 Detach 58 | . . . . . . . . 2 . . 1 . . 1 . 1 . . . . . 2 1 1 8 32 9 Swap 296 | . 1 . 6 . 4 . 10 6 4 16 1 7 5 17 4 8 8 . . 7 30 70 7 21 20 22 22 Drop 246 | . 1 . 8 . 1 . 15 9 12 2 7 4 13 18 11 2 10 1 1 4 24 27 2 8 13 26 27 Fire 1523 | . 7 . 62 4 . 67 148 95 26 22 4 29 35 85 51 33 12 3 4 38 180 140 41 126 111 119 81 Melee 16 | . . . . . . . . . . . . . . . . . . . . . . . . . 1 7 8 Ram . | . . . . . . . . . . . . . . . . . . . . . . . . . . . . Kick . | . . . . . . . . . . . . . . . . . . . . . . . . . . . . Crush 4 | . . . . . . . . . . . . . . . . . . . . . . . . 3 . 1 . Escape Stasis 52 | . . . . . . . . 33 . 6 . 2 . 8 . . . . . . . . . . 3 . . Rewire 134 | . . . . . . . . . . 14 . . . 86 . 34 . . . . . . . . . . . Trap . | . . . . . . . . . . . . . . . . . . . . . . . . . . . . Miscellaneous 6 | . . . . . . . . . . . . . . . 1 . . . . . . . . . . 5 . Route ------- -11/Scrapyard -10/Materials (discovered 2 exits: *Mat / *Min) -10/Mines (discovered 2 exits: *Mat x2) -9/Materials (discovered 3 exits: *Mat / [*Min] / [*Sto]) -9/Mines (discovered 2 exits: *Mat / *Exi) -9/Exiles -8/Mines (discovered 2 exits: *Mat x2) -8/Materials (discovered 3 exits: *Fac x2 / Gar) -8/Garrison (discovered 2 exits: *Fac x2) -7/Factory (discovered 3 exits: Low x2 / Gar) -7/Garrison -7/Factory -7/Garrison -6/Factory -6/Garrison (discovered 3 exits: *Fac x3) -6/Factory -6/Extension (discovered 3 exits: *Fac x2 / *Cet) -6/Cetus (discovered 2 exits: *Fac / [*Arc]) -6/Archives -6/Hub_04(d) (discovered 5 exits: Fac x4 / Gar) -6/Garrison -5/Factory -4/Factory (discovered 5 exits: *Res / *Upp x2 / Arm / Gar) -4/Garrison (discovered 3 exits: *Res x3) -3/Research -3/Garrison (discovered 3 exits: *Res x3) -2/Research -1/Access To Epsilon Eridani History --------- Turn | Location | Event 15 | -11/Scrapyard | Discovered new exit (range 16) 55 | -11/Scrapyard | Entered Materials 107 | -10/Materials | Discovered new exit (range 4) 278 | -10/Materials | Discovered new exit (range 12) 310 | -10/Materials | Build established: Mutant 333 | -10/Materials | Entered Mines 355 | -10/Mines | Met a Derelict bent on vengeance 444 | -10/Mines | Discovered new exit (range 9) 523 | -10/Mines | Discovered new exit (range 7) 531 | -10/Mines | Entered Materials 531 | -9/Materials | Evolved 2 slots: Utility x2 581 | -9/Materials | Discovered new exit (range 14) 829 | -9/Materials | Discovered new exit (range 11) 896 | -9/Materials | Discovered new exit (range 16) 1230 | -9/Materials | Destroyed 8 combat bots 1330 | -9/Materials | Entered Mines 1334 | -9/Mines | Discovered new exit (range 5) 1340 | -9/Mines | Core integrity fell below 50% 1426 | -9/Mines | Deemed a non-threat by the Exiles lab entrance 1428 | -9/Mines | Discovered new exit (range 5) 1435 | -9/Mines | Entered Exiles 1480 | -9/Exiles | Met 8R-AWN 1509 | -9/Exiles | Met EX-HEX 1560 | -9/Exiles | Met EX-BIN 1601 | -9/Exiles | Aligned with FarCom system 1603 | -9/Exiles | Given EX-Vault access code 1660 | -9/Exiles | Opened EX-Vault 1668 | -9/Exiles | Found Prototype Device 1669 | -9/Exiles | Identified Trap Reconfigurator 1681 | -9/Exiles | Found Prototype Energy Cannon 1682 | -9/Exiles | Identified Latent Energy Streamer 1690 | -9/Exiles | DAS Turret deployed 1728 | -9/Exiles | Warned to stay clear of 0b10 Research branches 1784 | -9/Exiles | Met EX-DEC 1944 | -9/Exiles | Discovered new exit (range 15) 1968 | -9/Exiles | Left Exiles lab with Latent Energy Streamer 1968 | -9/Exiles | Entered Mines 2192 | -8/Mines | Discovered new exit (range 4) 2299 | -8/Mines | Lost 3 parts (2n1u) 2787 | -8/Mines | Core integrity fell below 20% 2868 | -8/Mines | Discovered new exit (range 9) 2886 | -8/Mines | Entered Materials 2886 | -8/Materials | Evolved 2 slots: Utility x2 3071 | -8/Materials | Build established: Scavenger-Mutant 3818 | -8/Materials | Discovered new exit (range 15) 4347 | -8/Materials | Build established: Hauler-Mutant 4582 | -8/Materials | Discovered new exit (range 14) 4679 | -8/Materials | Lost 6 parts (2p1n2u1w) 4916 | -8/Materials | Garrison activated, responded to threat 5158 | -8/Materials | Identified exit to Garrison 5158 | -8/Materials | Entered Garrison 5274 | -8/Garrison | Triggered checkpoint 5281 | -8/Garrison | Garrison Relay disabled 5348 | -8/Garrison | Triggered checkpoint 5653 | -8/Garrison | Triggered checkpoint 5656 | -8/Garrison | Core integrity fell below 50% 5830 | -8/Garrison | Discovered new exit (range 10) 5876 | -8/Garrison | Triggered checkpoint 5941 | -8/Garrison | Garrison Relay disabled 6066 | -8/Garrison | Triggered checkpoint 6303 | -8/Garrison | Triggered checkpoint 6313 | -8/Garrison | Discovered new exit (range 13) 6347 | -8/Garrison | Installed Relay Interface Framework 6420 | -8/Garrison | Triggered checkpoint 6435 | -8/Garrison | Garrison Relay disabled 6509 | -8/Garrison | Entered Factory 6509 | -7/Factory | Evolved 2 slots: Utility x2 6638 | -7/Factory | Build established: Bothacker-Mutant 6750 | -7/Factory | Identified exit to Lower Caves 6878 | -7/Factory | Found Powered Armor 6884 | -7/Factory | Found Powered Armor 6888 | -7/Factory | Found Powered Armor 6890 | -7/Factory | Found Powered Armor 6990 | -7/Factory | Fabricated Hacking Suite (x1) 7080 | -7/Factory | Fabricated Hacking Suite (x1) 7368 | -7/Factory | Garrison activated, responded to threat 7669 | -7/Factory | Identified exit to Garrison 7669 | -7/Factory | Entered Garrison 7986 | -7/Garrison | Triggered checkpoint 7989 | -7/Garrison | Triggered checkpoint 8014 | -7/Garrison | Triggered checkpoint 8169 | -7/Garrison | Discovered new exit (range 8) 8194 | -7/Garrison | Expanded RIF knowledge: Robot Detection 8208 | -7/Garrison | Entered Factory 8524 | -7/Factory | Build established: Hauler-Mutant 8570 | -7/Factory | Identified exit to Garrison 8570 | -7/Factory | Entered Garrison 8648 | -7/Garrison | Triggered checkpoint 8672 | -7/Garrison | Garrison Relay disabled 8798 | -7/Garrison | Triggered checkpoint 8859 | -7/Garrison | Triggered checkpoint 8880 | -7/Garrison | Triggered checkpoint 8907 | -7/Garrison | Destroyed 8 combat bots 8930 | -7/Garrison | Discovered new exit (range 10) 8957 | -7/Garrison | Expanded RIF knowledge: Patrol Navigation 8963 | -7/Garrison | Entered Factory 8963 | -6/Factory | Evolved 2 slots: Propulsion x2 8966 | -6/Factory | Build established: Bothacker-Mutant 9753 | -6/Factory | Fabricated Powered Armor? 9771 | -6/Factory | Fabricated Powered Armor? 9981 | -6/Factory | Identified exit to Garrison 9981 | -6/Factory | Entered Garrison 10121 | -6/Garrison | Build established: Hauler-Mutant 10124 | -6/Garrison | Triggered checkpoint 10196 | -6/Garrison | Found Hvy. Insulated Plating 10204 | -6/Garrison | Found Hvy. Insulated Plating 10285 | -6/Garrison | Garrison Relay disabled 10406 | -6/Garrison | Triggered checkpoint 10451 | -6/Garrison | Triggered checkpoint 10466 | -6/Garrison | Spotted B-75 Beast 10630 | -6/Garrison | Destroyed B-75 Beast 10741 | -6/Garrison | Discovered new exit (range 15) 10804 | -6/Garrison | Triggered checkpoint 10919 | -6/Garrison | Build established: Scavenger-Mutant 11001 | -6/Garrison | Discovered new exit (range 10) 11150 | -6/Garrison | Phase Generator disabled 11355 | -6/Garrison | Triggered checkpoint 11396 | -6/Garrison | Triggered checkpoint 11511 | -6/Garrison | Triggered checkpoint 11560 | -6/Garrison | Triggered checkpoint 11572 | -6/Garrison | Build established: Commander-Mutant 11668 | -6/Garrison | Discovered new exit (range 10) 11693 | -6/Garrison | Expanded RIF knowledge: Autooverride 11701 | -6/Garrison | Entered Factory 11701 | -6/Factory | Accompanied by 8 allies 12309 | -6/Factory | Build established: Hauler-Mutant 12492 | -6/Factory | Discovered new exit (range 9) 12502 | -6/Factory | Entered Extension 12502 | -6/Extension | Accompanied by 1 ally 12520 | -6/Extension | Disrupted transfer network 12782 | -6/Extension | Rescued a captive Derelict 12784 | -6/Extension | Rescued a captive Derelict 12831 | -6/Extension | Rescued a captive Derelict 12831 | -6/Extension | Rescued a captive Derelict 12883 | -6/Extension | Energy Cycler disabled 12884 | -6/Extension | Rescued a captive Derelict 12884 | -6/Extension | Rescued a captive Derelict 12885 | -6/Extension | Rescued a captive Derelict 12886 | -6/Extension | Rescued a captive Derelict 12886 | -6/Extension | Rescued a captive Derelict 12909 | -6/Extension | Rescued A7 12948 | -6/Extension | Spotted B-75 Beast 12955 | -6/Extension | Spotted B-75 Beast 12964 | -6/Extension | Discovered new exit (range 15) 12967 | -6/Extension | Allies destroyed B-75 Beast 12976 | -6/Extension | Destroyed B-75 Beast 12997 | -6/Extension | Destroyed 8 combat bots 13131 | -6/Extension | Discovered new exit (range 16) 13131 | -6/Extension | Discovered new exit (range 16) 13174 | -6/Extension | Entered Cetus 13174 | -6/Cetus | Accompanied by 6 allies 13179 | -6/Cetus | Acquired a Cetus Manufacturing Module code from A7 13197 | -6/Cetus | Spotted Cetus Guard 13197 | -6/Cetus | Spotted Cetus Guard 13202 | -6/Cetus | Spotted Cetus Guard 13202 | -6/Cetus | Spotted Cetus Guard 13210 | -6/Cetus | Allies destroyed Cetus Guard 13211 | -6/Cetus | Allies destroyed Cetus Guard 13212 | -6/Cetus | Allies destroyed Cetus Guard 13218 | -6/Cetus | Allies destroyed Cetus Guard 13340 | -6/Cetus | Started Cetus Manufacturing Module 13365 | -6/Cetus | Manufactured an Enhanced Grunt 13390 | -6/Cetus | Manufactured an Enhanced Grunt 13415 | -6/Cetus | Manufactured an Enhanced Grunt 13440 | -6/Cetus | Manufactured an Enhanced Grunt 13451 | -6/Cetus | Discovered new exit (range 16) 13465 | -6/Cetus | Manufactured an Enhanced Grunt 13482 | -6/Cetus | Spotted Cetus Guard 13485 | -6/Cetus | Destroyed Cetus Guard 13488 | -6/Cetus | Spotted Cetus Guard 13488 | -6/Cetus | Spotted Cetus Guard 13492 | -6/Cetus | Spotted Cetus Guard 13505 | -6/Cetus | Destroyed Cetus Guard 13508 | -6/Cetus | Extracted ID and sensor layout for unrecognized location from A7's data core 13509 | -6/Cetus | Allies destroyed Cetus Guard 13510 | -6/Cetus | Allies destroyed Cetus Guard 13513 | -6/Cetus | Discovered new exit (range 15) 13522 | -6/Cetus | Met Revision 17 13618 | -6/Cetus | Entered Archives 13618 | -6/Archives | Accompanied by 5 allies 13679 | -6/Archives | Discovered new exit (range 14) 13704 | -6/Archives | Entered Hub_04(d) 13704 | -6/Hub_04(d) | Accompanied by 4 allies 13762 | -6/Hub_04(d) | Identified exit to Factory 13957 | -6/Hub_04(d) | Identified exit to Garrison 13957 | -6/Hub_04(d) | Entered Garrison 14010 | -6/Garrison | Triggered checkpoint 14093 | -6/Garrison | Garrison Relay disabled 14188 | -6/Garrison | Triggered checkpoint 14206 | -6/Garrison | Spotted B-75 Beast 14257 | -6/Garrison | Destroyed B-75 Beast 14280 | -6/Garrison | Triggered checkpoint 14317 | -6/Garrison | Destroyed 7 combat bots 14375 | -6/Garrison | Discovered exit to Factory (range 9) 14398 | -6/Garrison | Build established: Bothacker-Mutant 14399 | -6/Garrison | Expanded RIF knowledge: Alert ID Control 14405 | -6/Garrison | Entered Factory 14405 | -5/Factory | Evolved 2 slots: Utility x2 14704 | -5/Factory | Repaired Centrium Heavy Treads? 15005 | -5/Factory | First assault squad dispatched 15701 | -5/Factory | Repaired Imp. Utility Shielding? 15709 | -5/Factory | Found Faulty Exp. Targeting Computer 15838 | -5/Factory | Central database locked down 15855 | -5/Factory | Repaired Centrium Heavy Treads? 16069 | -5/Factory | Destroyed 9 combat bots 16403 | -5/Factory | Local fabrication network quarantined 16424 | -5/Factory | Fabricated Exp. Utility Shielding (x1) 16622 | -5/Factory | Discovered new exit (range 5) 16716 | -5/Factory | Repaired Centrium Heavy Treads? 16888 | -5/Factory | Entered another Factory area 16888 | -4/Factory | Evolved 2 slots: Power x1, Utility x1 17116 | -4/Factory | Repaired Centrium Heavy Treads 17187 | -4/Factory | First assault squad dispatched 17396 | -4/Factory | Build established: Hacker-Mutant 17824 | -4/Factory | Discovered new exit (range 20) 18156 | -4/Factory | Repaired Exp. Utility Shielding 18187 | -4/Factory | Repaired Lrn. Proton Cannon? 18376 | -4/Factory | Discovered new exit (range 7) 18510 | -4/Factory | Identified exit to Upper Caves 18510 | -4/Factory | Identified exit to Armory 19260 | -4/Factory | Destroyed 7 combat bots 19491 | -4/Factory | Identified exit to Garrison 19491 | -4/Factory | Entered Garrison 19491 | -4/Garrison | Accompanied by 1 ally 19592 | -4/Garrison | Triggered checkpoint 19600 | -4/Garrison | Spotted B-86 Titan 19600 | -4/Garrison | Triggered checkpoint 19604 | -4/Garrison | Triggered checkpoint 19646 | -4/Garrison | Destroyed 13 combat bots 19675 | -4/Garrison | Lost 4 parts (2p2w) 19697 | -4/Garrison | Destroyed B-86 Titan 19765 | -4/Garrison | Build established: Bothacker-Mutant 19794 | -4/Garrison | Triggered checkpoint 19824 | -4/Garrison | Garrison Relay disabled 19976 | -4/Garrison | Discovered new exit (range 10) 20160 | -4/Garrison | Discovered new exit (range 15) 20362 | -4/Garrison | High security lockdown imminent 20382 | -4/Garrison | Discovered new exit (range 12) 20407 | -4/Garrison | Expanded RIF knowledge: Autooverride 20414 | -4/Garrison | Entered Research 20414 | -3/Research | Accompanied by 1 ally 20414 | -3/Research | Evolved 2 slots: Propulsion x1, Utility x1 20699 | -3/Research | Build established: Botlord-Mutant 20943 | -3/Research | First assault squad dispatched 20990 | -3/Research | Garrison activated, responded to threat 21198 | -3/Research | System corruption reached 10% 21302 | -3/Research | Destroyed 11 combat bots 21340 | -3/Research | Build established: Bothacker-Mutant 21343 | -3/Research | Spotted B-86 Titan 21484 | -3/Research | Spotted B-86 Titan 21494 | -3/Research | Identified exit to Garrison 21494 | -3/Research | Entered Garrison 21514 | -3/Garrison | Triggered checkpoint 21563 | -3/Garrison | Found Gamma Bomb Array 21566 | -3/Garrison | Found Gamma Bomb Array 21571 | -3/Garrison | Found Gamma Bomb Array 21573 | -3/Garrison | Found Gamma Bomb Array 24324 | -3/Garrison | Triggered checkpoint 24494 | -3/Garrison | Spotted B-86 Titan 24516 | -3/Garrison | Triggered checkpoint 24538 | -3/Garrison | Destroyed B-86 Titan 24552 | -3/Garrison | Triggered checkpoint 24561 | -3/Garrison | Triggered checkpoint 24624 | -3/Garrison | Lost 3 parts (2u1w) 24628 | -3/Garrison | Destroyed 10 combat bots 24650 | -3/Garrison | Found Hvy. Reflective Plating 24653 | -3/Garrison | Triggered checkpoint 24703 | -3/Garrison | Destroyed 7 combat bots 24778 | -3/Garrison | Discovered new exit (range 8) 24874 | -3/Garrison | Triggered checkpoint 24894 | -3/Garrison | Triggered checkpoint 24980 | -3/Garrison | Lost 3 parts (2p1u) 25000 | -3/Garrison | Build established: Scavenger-Mutant 25234 | -3/Garrison | Discovered new exit (range 19) 25369 | -3/Garrison | High security lockdown imminent 25449 | -3/Garrison | High security lockdown engaged 25458 | -3/Garrison | Discovered new exit (range 19) 25498 | -3/Garrison | Destroyed 8 combat bots 25511 | -3/Garrison | Expanded RIF knowledge: Coupler Efficiency 25518 | -3/Garrison | Entered Research 25518 | -2/Research | Evolved 2 slots: Utility x1, Weapon x1 25768 | -2/Research | First assault squad dispatched 25833 | -2/Research | Found Launcher Loader 25912 | -2/Research | Repaired Exp. Utility Shielding? 25915 | -2/Research | Discovered new exit (range 9) 25928 | -2/Research | Found Prototype Processor 25979 | -2/Research | Identified Exp. Core Analyzer 26100 | -2/Research | System corruption reached 10% 26146 | -2/Research | Destroyed 11 combat bots 26283 | -2/Research | Build established: Hacker-Mutant 26306 | -2/Research | Lost 3 parts (1n1u1w) 26386 | -2/Research | Lost 7 parts (2p3n1u1w) 26772 | -2/Research | Destroyed 10 combat bots 26779 | -2/Research | Lost 9 parts (2p1n3u3w) 26893 | -2/Research | Entered Access 26893 | -1/Access | Evolved 2 slots: Utility x2 27230 | -1/Access | Build established: Scavenger-Assassin 27293 | -1/Access | Found Unknown Device 27297 | -1/Access | Identified Antimissile System 27393 | -1/Access | First assault squad dispatched 27520 | -1/Access | Found Unknown Device 27536 | -1/Access | Identified Quantum Capacitor 27574 | -1/Access | Fabricated Cmb. Linear Gravjet (x2) 27655 | -1/Access | Fabricated Cmb. Linear Gravjet (x2) 27678 | -1/Access | System corruption reached 10% 27704 | -1/Access | Lost 14 parts (2p4n3u5w) 27810 | -1/Access | Fabricated Exp. Utility Shielding? 27878 | -1/Access | Found Hvy. Reactive Plating 27907 | -1/Access | Local fabrication network quarantined 27950 | -1/Access | Repaired Exp. Utility Shielding? 27997 | -1/Access | Identified exit to Surface 28173 | -1/Access | Build established: Hacker-Scout 28365 | -1/Access | Crushed by falling debris 28386 | *** | Escaped! Last Messages --------------- 28282_ System corrupted: Hvy. Neutron Cannon targeting data glitched. 28282_ P-80 Master suffers critical hit. 28282_ Destroyed Gamma Rifle. 28285_ Acquired 49 matter. 28295_ Dropped Enh. Quantum Rifle. 28295_ Acquired Enh. Nova Cannon. 28308_ Connecting with Terminal... 28322_ R7V=R#EODC>ignore_repairs Repair routines blocked. 28332_ P-80 Master resets U-05 Engineer, behavior restored. 28333_ U-05 Engineer builds a Wall. 28349_ System corrupted: Matter fused (-7). 28365_ The unstable cave ceiling collapses. 28365_ Crushed by falling debris. 28375_ System corrupted: Matter fused (-6). 28383_ Main Access Shell breached. 28385_ Overheating: System interference. 28385_ Exp. Core Analyzer temporarily disabled. Map ----- +----------------------------------------------------+ | ?????????????????????????????????????????????????? | | ?????????????????????????????????????????????????? | | ?????????????????????????????????????????????????? | | ?????????????????????????????????????????????????? | | ????????????????????????????????????????????????? | | ?????????????????????????????????????????????????? | | ?????????????????????????????????????????????????? | | ??? ?????????????????????????????????????????????? | | ?????????????????????????????????????????????????? | | ??? ?????????????????????????????????????????????? | | ?????????????????????????????????????????????????? | | ?? ???????? ?????????????????????????????????????? | | ??????????# ?????????????????????????????????????? | | ????? ????# ????????????????????????????????????? | | ? ??? ????# ????????????????????????????????????? | | ??????????# ????????????????????????????????????? | | ??????????# ????????????????????????????????????? | | ??????????# ????????????????????????????????????? | | #?????????# ????????????????????????????????????? | | ??????????# #######"###?????????????????????????? | | ??????????# """T"""" ?????????????????????????? | | ??#???????# """ """" ???????????BB????????????? | | #?????#???# " """"""??????BB????????????? | | ??????????# " " "????????????????????? | | ??????????# " " "" "????????????????????? | | ??#?#?????# " @" "????????????????????? | | ?#??#????## " " "????????????????????? | | ??????????# " """""" "????BB????????????? | | #??#????#?# " "????BB????????????? | | ??####??#?# " "??????????????????? | | ##??#?????# #######""#########??????????????????? | | ####??#???# #????##"##??#??#?#??????????????????? | | #?###???#?# ###########??????????#??????????????? | | # # # #???#?????????????????????? | | # # # #???# ?????? ?????????????? | | # " + + #???#?????????????????????? | | # """ # # ##?## ??????? ??? #???????? | | # """ #gg# #???#?????????????????????? | | # " # g# "" "" #??##??? ???????? ????????? | | # # # ""R""[ ###########+??????????????? | | # # g# """" "" = !!+????????????????? | | ########### ############ [ #? ????#?????????? | | ## #??#???????# *#????#???????????? | | ## ###?##???### #???? ???????????? | | ## #??##??#?#?# =!#????????????????? | | " ## ##?#???#???# [ |[*# ?#????? ???????? | | " # #################+=% #?????????????? | | # "" ==! #?????????????? | | # "T / ? "??"?????? | | #####+#### ##### # ??????????? | +----------------------------------------------------+ Best States ------------- Heat Dissipation 73 Coolant Potential 100 Energy Generation 43 Energy Capacity 1260 Matter Stores 390 Matter Capacity 550 Sight Range 16 Terrain Scan Range 20 Terrain Scan Density 210 ECM Strength 3 Cloak Strength 4 Armor Coverage 2400 Resistance: KI 40 Resistance: TH 30 Resistance: EM 30 Core Shielding 30 Propulsion Shielding 66 Utility Shielding 90 Weapon Shielding 66 Phase Shifting 15 Evasion (%) 74 Launcher Accuracy 40 Core Analysis 15 Recoil Reduction 5 Offensive Hacking 34 Defensive Hacking 40 Item Schematics ----------------- Hacking Suite | -8/Materials | Scanalyzed Imp. Utility Shielding | -7/Factory | Scanalyzed Powered Armor | -6/Factory | Scanalyzed Exp. Utility Shielding | -5/Factory | Hacked Exp. Targeting Computer | -5/Factory | Scanalyzed Adv. System Shield | -5/Factory | Scanalyzed Hyp. Mass Driver | -4/Factory | Hacked Cmb. Linear Gravjet | -1/Access | Hacked Robot Schematics ------------------ None Fabricated ------------ Hacking Suite | x1 | -7/Factory Hacking Suite | x1 | -7/Factory Powered Armor | x2 | -6/Factory Powered Armor | x2 | -6/Factory Exp. Utility Shielding | x1 | -5/Factory Cmb. Linear Gravjet | x2 | -1/Access Cmb. Linear Gravjet | x2 | -1/Access Exp. Utility Shielding | x1 | -1/Access Alien Tech Used ----------------- None Achievements -------------- Cannon Specialist Turtlemind Challenges ------------ None Game ------ Seed SkeletonCentriumRedirector Manual? 0 Play Time 05:20:50 Cumulative 639.0 hours Start 2019.10.22 @ 19:04:43 End 2019.10.23 @ 13:21:31 Sessions 9 Manual Loads 0 Difficulty Rogue Special Mode None Game No. 153 Rogue 153 Adventurer 0 Explorer 0 Win Type 0 Total 23 Types 15/0/2/3/2/0/1 Lore% 95 Gallery% 96 Achievement% 87 Wizard Run 0 Options --------- ASCII 0 Keyboard 1 Movement Numpad Keybinds 0 Fullscreen 1 Font 18/SmallcapsGlow Map View 76x50 Tactical HUD 1 Map Filters NONE Filters NONE Steam 1 RUN: 75f9c0c7-0654-4683-8397-6f63a475a68e